{"text_format":"1","workbook":"xlsx","n_sheets":5,"sheets":["Bilgiler","İzlenebilirlik","Rapor","EGT Testi","PERFORMANS Testi"],"not_rendered":{"charts":4,"images":3,"macros":1,"external_links":0,"defined_names":1,"comments":0,"pivot_tables":0},"unopened":[],"bounds":{"document_bytes":16777216,"sheet_cells":100000,"rows_first":2000,"rows_last":500,"rows_between":2000,"halvings":0,"cell_chars":16384,"cell_head_chars":4096},"cells_cut":0,"cells_raw":0,"read":"whole","date_system":"1900"}

{"sheet":"Bilgiler","index":0,"n_rows":28,"n_cols":25,"rows_kept":28,"cut":false,"hidden":false,"merged":[]}
["Id","Birlik","SağlıkTesisi","Künye","RaporNo","Tür","Cihaz","Üretici","Model","Seri","Lokasyon","KalTarihi","GeçTarihi","RaporTarihi","KalibrasyonYapan","Ünvanı","ZimmetSahibi","NezaretEden","FizikselKontrol","Uygun","Uygunsuz","Sınırlı","UzmanGörüşü","Yorum","Not"]
[1,"-","SAĞLIK TESİSİ","43547","1801500623","Tür31","ELEKTROKOTER","SPECTRA","OPTİA","1PO-2449","LOKASYON","2018-09-14","2019-09-16","2018-10-11","GÜNAY YÜKSEK","BİYOMEDİKAL TEKNİKERİ","-","-","√","√","-","-","Cihazın toleranslar dahilinde çalıştığı tespit edilmiştir."]
[]
[null,"GENEL RAPOR BİLGİLERİ"]
[null,"Sayfa Sayısı",6]
[null,"Test Sayısı",12]
[null,"Biyomedikal Tür","ELEKTRO CERRAHİ – DAMAR KAPAMA"]
[null,"Lab. Sorumlusu","SELMAN SABAZ"]
[null,"Ünvanı","Biyomedikal Mühendisi"]
[]
[null,"STANDART BİLGİLERİ"]
[null,"1. Standart","TS ISO-60601-1"]
[null,"1. Standart Başlığı","ELEKTRİKLİ TIBBİ DONANIM – Bölüm 1 - Temel Güvenlik ve Gerekli Performans İçin Genel Kurallar"]
[null,"1. Test Madde No","Koruyucu Topraklama Direnci (Madde 8.6)\nTopraklama Kaçak Akımı (Madde 8.7)\nGövde Kaçak Akımı (Madde 8.7)\nHasta Kaçak Akımı (Madde 8.7)\nHasta Yardımcı Kaçak Akımı (Madde 8.7)\nUygulama Parçalarında Kaçak Akımı (Madde 8.7)\nŞebeke Gerilimi ( Madde 8 )\nCihaz Akımı (Madde 8 )\n"]
[null,"1. Test Başlığı","Koruyucu Topraklama Direnci, Topraklama Kaçak Akımı, Şasi Kaçak Akımı, Hasta Kaçak Akımı, Hasta Yardımcı Kaçak Akımı, Uygulama Parçalarında Kaçak Akımı, Şebeke Gerilimi, Cihaz Akımı"]
[null,"1. Revizyon Tarihi","2010-06-01"]
[null,null,"  "]
[null,"2. Standart","TS EN 60601-2-2"]
[null,"2. Standart Başlığı","Elektrikli Tıbbi Donanım -Bölüm 2 - 2: Yüksek Frekanslı Cerrahi Donanımının Ve Gerekli Performansı İçin Belirli Özellikler"]
[null,"2. Test Madde No","Güç Dağılımı Testi TS EN 60601-2-2 (Madde 50.1)\nHF Kaçak Testi TS EN 60601-2-2 (Madde 201.8.7.3.101)\nREM Alarm Testi TS EN 60601-2-2 (Madde 52)"]
[null,"2. Test Başlığı","  "]
[null,"2. Revizyon Tarihi","Mar.2013"]
[null,null,"  "]
[null,"3. Standart","  "]
[null,"3. Standart Başlığı","  "]
[null,"3. Test Madde No","  "]
[null,"3. Test Başlığı","  "]
[null,"3. Revizyon Tarihi","  "]

{"sheet":"İzlenebilirlik","index":1,"n_rows":4,"n_cols":11,"rows_kept":4,"cut":false,"hidden":false,"merged":[]}
["Id","Id","Kodu","Cihaz","Üretici","Model","Seri","İzlenebilirlik","SertifikaNo","KalTarihi","GecTarihi"]
[1,1,"K100","Elektriksel Güvenlik Analizörü","Fluke biomedical","3326947TA-ESA-620","5458076","Fluke","46950","2021-06-08","2022-06-08"]
[2,2,"K112","Elektrocerrahi Ünite Test Cihazı","Fluke","QA-ESMKIII","5460032","Fluke","PC-EVT-HXH0DV2","2021-06-11","2022-06-11"]
[3,3," -"," -"," -"," -"," -"," -"," -","1991-09-20","1991-09-20"]

{"sheet":"Rapor","index":2,"n_rows":234,"n_cols":28,"rows_kept":234,"cut":false,"hidden":false,"merged":[[210,3,210,25],[210,26,210,28],[140,21,140,26],[139,21,139,26],[138,21,138,26],[127,21,127,26],[128,21,128,26],[132,21,132,26],[131,21,131,26],[130,21,130,26],[129,21,129,26],[133,21,133,26],[134,21,134,26],[135,21,135,26],[205,25,205,28],[202,25,204,28],[202,3,202,7],[202,8,202,12],[202,13,202,17],[202,18,202,21],[202,22,202,24],[203,3,203,7],[203,8,203,12],[203,13,203,17],[203,18,203,21],[203,22,203,24],[204,3,204,7],[204,8,204,12],[204,13,204,17],[204,18,204,21],[204,22,204,24],[205,3,205,7],[205,8,205,12],[205,13,205,17],[205,18,205,21],[205,22,205,24],[199,3,199,28],[200,3,201,7],[200,8,201,12],[200,13,201,17],[200,18,201,21],[200,22,201,24],[200,25,201,28],[189,25,191,28],[189,22,189,24],[190,22,190,24],[191,22,191,24],[190,8,190,12],[190,13,190,17],[191,8,191,12],[191,13,191,17],[190,18,190,21],[191,18,191,21],[194,0,197,19],[196,23,196,27],[197,23,197,27],[190,3,190,7],[191,3,191,7],[192,3,192,7],[194,23,194,27],[186,3,186,28],[182,25,184,28],[189,8,189,12],[189,13,189,17],[182,18,182,21],[183,18,183,21],[184,18,184,21],[185,18,185,21],[189,18,189,21],[183,8,183,12],[183,13,183,17],[184,8,184,12],[184,13,184,17],[185,8,185,12],[185,13,185,17],[187,3,188,7],[187,8,188,12],[187,13,188,17],[187,18,188,21],[187,22,188,24],[187,25,188,28],[184,3,184,7],[185,3,185,7],[189,3,189,7],[179,3,179,28],[180,3,181,7],[180,8,181,12],[180,13,181,17],[180,18,181,21],[180,22,181,24],[180,25,181,28],[182,3,182,7],[183,3,183,7],[182,8,182,12],[182,13,182,17],[182,22,182,24],[183,22,183,24],[184,22,184,24],[185,22,185,24],[185,25,185,28],[89,0,93,1],[78,0,80,1],[74,23,74,27],[81,0,84,1],[85,0,88,1],[78,25,78,29],[79,25,79,29],[80,8,80,29],[79,8,79,18],[80,2,80,6],[84,5,84,14],[97,21,97,26],[98,21,98,26],[117,27,117,28],[103,27,103,28],[104,27,104,28],[97,27,97,28],[98,27,98,28],[99,27,99,28],[100,27,100,28],[101,27,101,28],[50,0,53,1],[54,0,58,1],[74,0,77,19],[76,23,76,27],[77,23,77,27],[60,3,60,28],[61,3,61,10],[61,11,61,14],[61,15,61,18],[61,19,61,22],[61,23,61,25],[61,26,61,28],[62,3,62,10],[62,11,62,14],[62,15,62,18],[62,19,62,22],[62,23,62,25],[62,26,62,28],[63,3,63,10],[63,11,63,14],[63,15,63,18],[63,19,63,22],[63,23,63,25],[63,26,63,28],[0,0,3,19],[2,23,2,27],[3,23,3,27],[4,0,8,1],[6,2,8,6],[0,23,0,27],[11,20,11,29],[4,2,5,5],[4,21,5,29],[4,20,5,20],[4,16,5,19],[4,7,5,15],[4,6,5,6],[15,2,16,6],[10,6,11,16],[12,6,12,16],[36,0,40,1],[26,0,30,1],[31,0,35,1],[31,2,31,21],[31,22,35,29],[37,2,40,29],[17,0,20,1],[21,0,25,1],[22,12,22,19],[23,12,25,19],[9,0,16,1],[10,2,11,5],[13,2,14,6],[13,7,14,16],[13,17,16,20],[13,21,16,29],[26,2,30,29],[15,7,16,16],[46,25,46,29],[47,7,47,18],[47,25,47,29],[48,7,48,29],[49,7,49,29],[231,2,235,15],[18,10,18,29],[19,10,19,29],[20,10,20,29],[91,2,93,8],[56,2,58,8],[53,5,53,14],[52,21,52,29],[53,21,53,29],[84,21,84,29],[83,21,83,29],[42,0,45,19],[44,23,44,27],[45,23,45,27],[46,0,49,1],[42,23,42,27],[231,0,235,1],[231,16,235,17],[59,0,72,1],[64,26,64,28],[65,3,65,10],[65,11,65,14],[65,15,65,18],[65,19,65,22],[65,23,65,25],[65,26,65,28],[64,3,64,10],[64,11,64,14],[64,15,64,18],[64,19,64,22],[64,23,64,25],[66,26,66,28],[67,3,67,10],[67,11,67,14],[67,15,67,18],[67,19,67,22],[67,23,67,25],[67,26,67,28],[66,3,66,10],[66,11,66,14],[66,15,66,18],[66,19,66,22],[66,23,66,25],[70,15,70,18],[70,19,70,22],[70,23,70,25],[68,26,68,28],[69,3,69,10],[69,11,69,14],[69,15,69,18],[69,19,69,22],[69,23,69,25],[69,26,69,28],[68,3,68,10],[68,11,68,14],[68,15,68,18],[68,19,68,22],[68,23,68,25],[70,26,70,28],[70,3,70,10],[70,11,70,14],[71,15,71,18],[71,19,71,22],[71,23,71,25],[71,26,71,28],[96,27,96,28],[95,3,95,28],[96,18,96,20],[71,3,71,10],[71,11,71,14],[96,21,96,26],[88,21,88,29],[96,14,96,17],[102,27,102,28],[99,21,99,26],[100,21,100,26],[101,21,101,26],[102,21,102,26],[103,21,103,26],[104,21,104,26],[117,21,117,26],[116,21,116,26],[116,18,116,20],[121,27,121,28],[122,27,122,28],[119,27,119,28],[120,27,120,28],[124,21,124,26],[123,21,123,26],[122,21,122,26],[121,21,121,26],[120,21,120,26],[119,21,119,26],[118,21,118,26],[116,27,116,28],[158,12,158,19],[158,20,158,28],[156,3,156,11],[157,12,157,19],[158,3,158,11],[155,3,155,11],[155,12,155,19],[156,12,156,19],[155,20,155,28],[156,20,156,28],[157,20,157,28],[154,3,154,8],[154,9,154,15],[154,16,154,21],[154,22,154,28],[146,21,146,26],[145,21,145,26],[143,27,143,28],[144,27,144,28],[126,3,126,28],[127,14,127,17],[127,27,127,28],[127,18,127,20],[141,27,141,28],[142,27,142,28],[144,21,144,26],[143,21,143,26],[142,21,142,26],[141,21,141,26],[130,27,130,28],[131,27,131,28],[128,27,128,28],[129,27,129,28],[215,3,215,25],[94,0,109,1],[110,0,113,19],[110,23,110,27],[112,23,112,27],[113,23,113,27],[114,0,147,1],[139,27,139,28],[140,27,140,28],[137,3,137,28],[138,14,138,17],[138,18,138,20],[138,27,138,28],[134,27,134,28],[135,27,135,28],[132,27,132,28],[133,27,133,28],[145,27,145,28],[146,27,146,28],[123,27,123,28],[124,27,124,28],[118,27,118,28],[115,3,115,28],[116,14,116,17],[216,3,216,25],[216,26,216,28],[217,3,217,25],[217,26,217,28],[148,0,151,19],[148,23,148,27],[150,23,150,27],[151,23,151,27],[211,26,211,28],[211,3,211,25],[214,26,214,28],[214,3,214,25],[213,26,213,28],[213,3,213,25],[212,26,212,28],[212,3,212,25],[153,3,153,28],[157,3,157,11],[209,3,209,25],[209,26,209,28],[207,3,207,28],[208,3,208,25],[208,26,208,28],[175,3,175,28],[215,26,215,28],[160,3,160,28],[162,3,162,11],[162,12,162,19],[162,20,162,28],[163,3,163,11],[163,12,163,19],[163,20,163,28],[161,3,161,11],[161,12,161,19],[161,20,161,28],[164,3,164,11],[164,12,164,19],[164,20,164,28],[165,3,165,11],[165,12,165,19],[165,20,165,28],[166,3,166,11],[166,12,166,19],[166,20,166,28],[167,3,167,11],[167,12,167,19],[167,20,167,28],[177,3,177,11],[177,12,177,19],[177,20,177,28],[170,3,170,11],[170,12,170,19],[170,20,170,28],[171,3,171,11],[171,12,171,19],[171,20,171,28],[172,3,172,11],[172,12,172,19],[172,20,172,28],[168,3,168,11],[168,12,168,19],[168,20,168,28],[169,3,169,11],[169,12,169,19],[169,20,169,28],[174,3,174,28],[176,3,176,11],[176,12,176,19],[176,20,176,28]]}
["BİYOMEDİKAL METROLOJİ RAPORU\nBiomedical Metrology Report",null,null,null,null,null,null,null,null,null,null,null,null,null,null,null,null,null,null,null,"Künye:",null,null,{"$f":"Bilgiler!D2","v":0}]
[null,null,null,null,null,null,null,null,null,null,null,null,null,null,null,null,null,null,null,null,"Rapor No:",null,null,{"$f":"Bilgiler!E2","v":0}]
[null,null,null,null,null,null,null,null,null,null,null,null,null,null,null,null,null,null,null,null,"Kal.Tar.:",null,null,{"$f":"Bilgiler!L2","v":"00:00:00"}]
[null,null,null,null,null,null,null,null,null,null,null,null,null,null,null,null,null,null,null,null,"Gec.Tar.:",null,null,{"$f":"Bilgiler!M2","v":"00:00:00"}]
["HİZMET\nBİLGİLERİ",null,"Rapor No",null,null,null,":",{"$f":"Bilgiler!E2","v":0},null,null,null,null,null,null,null,null,"Rapor Tarihi",null,null,null,":",{"$f":"Bilgiler!N2","v":"00:00:00"}]
[]
[null,null,"Uygulama Yeri",null,null,null,null,null,null,null,"Laboratuvar",null,null,null,null,null,null,null,null,null,null,"Yerinde"]
[null,null,null,null,null,null,null,":","Teslim Tutanak No",null,null,null,null,null,":",null,null,null,null,"Nezaret Eden:"]
[null,null,null,null,null,null,null,null,"Teslim Tarihi",null,null,null,null,null,":",null,null,null,null,{"$f":"Bilgiler!R2","v":0}]
["DONANIM\nBİLGİLERİ",null,"Birlik",null,":",{"$f":"Bilgiler!B2","v":0},null,null,null,null,null,null,null,null,null,null,null,"Marka",null,":",{"$f":"Bilgiler!H2","v":0}]
[null,null,"Sağlık Tesisi:",null,null,null,{"$f":"Bilgiler!C2","v":0},null,null,null,null,null,null,null,null,null,null,"Model",null,":",{"$f":"Bilgiler!I2","v":0}]
[null,null,null,null,null,null,null,null,null,null,null,null,null,null,null,null,null,"Seri No",null,":",{"$f":"Bilgiler!J2","v":0}]
[null,null,"Künye No",null,null,":",{"$f":"Bilgiler!D2","v":0},null,null,null,null,null,null,null,null,null,null,"Zimmet Sahibi:",null,null,null,{"$f":"Bilgiler!Q2","v":0}]
[null,null,"Biyomedikal Tür:",null,null,null,null,{"$f":"IF(Bilgiler!F2 = \"-\",Bilgiler!C7,Bilgiler!F2)","v":0},null,null,null,null,null,null,null,null,null,"Bulunduğu Yer:",null,null,null,{"$f":"Bilgiler!K2","v":0}]
[]
[null,null,"Biyomedikal Tanım:",null,null,null,null,{"$f":"Bilgiler!G2","v":0}]
[]
["METROLOJİ\nBİLGİLERİ",null,"Test Sayısı",null,null,":",{"$f":"Bilgiler!C6","v":12},null,null,null,null,null,null,null,null,null,null,"Rapor Sayfa No:",null,null,null,null,{"$f":"Bilgiler!C5","v":6},"Sayfa"]
[null,null,null,null,null,null,null,null,null,"1-",{"$f":"Bilgiler!C12","v":"TS ISO-60601-1"}]
[null,null,"Referans Standartlar",null,null,null,null,null,":","2-",{"$f":"Bilgiler!C18","v":"TS EN 60601-2-2"}]
[null,null,null,null,null,null,null,null,null,"3-",{"$f":"Bilgiler!C24","v":"  "}]
["HİZMET\nSONUCU",null,"Yukarıda künye bilgileri bulunan donanım sağlık hizmeti sunumunda;"]
[null,null,null,null,null,null,null,null,null,null,null,null,"Kullanıma Uygundur."]
[null,null,null,null,null,null,null,null,null,null,null,null,{"$f":"Bilgiler!T2","v":0}]
[]
[]
["          GENEL\n  DEĞERLENDİRME",null,{"$f":"Bilgiler!W2","v":0}]
[]
[]
[]
[]
["İMZA\nMÜHÜR",null,"LABORATUVAR YÖNETİCİSİ / SORUMLU MÜDÜR"]
[null,null,"ADI SOYADI",null,null,":",{"$f":"Bilgiler!C8","v":"SELMAN SABAZ"}]
[null,null,"ÜNVANI",null,null,":",{"$f":"Bilgiler!C9","v":"Biyomedikal Mühendisi"}]
[null,null,"İMZASI",null,null,":"]
[]
["BİLDİRİM",null,"Bu rapor; kapak sayfası dahil",null,null,null,null,null,{"$f":"Bilgiler!C5","v":6},"sayfadan ibaret olup yukarda künye bilgileri belirtilen biyomedikal donanıma özel düzenlenmiştir."]
[null,null,"Bu rapor tüm sayfaları ile bir bütün olup, laboratuarın yazılı izni olmadan kopyalanıp çoğaltılamaz. Gerektiğinde tam ve bütün nüshası laboratuardan talep edilir. Mühürsüz, elektronik imzasız veya ıslak imzasız sertifikalar geçersizdir.\n\nThis certificate shall not be reproduced except with the permission of the laboratory.  It can be provided by laboratory in case of request. Calibration certificate swith out signature and sealare not valid."]
[]
[]
[]
[]
["BİYOMEDİKAL METROLOJİ RAPORU\nBiomedical Metrology Report",null,null,null,null,null,null,null,null,null,null,null,null,null,null,null,null,null,null,null,"Künye:",null,null,{"$f":"Bilgiler!D2","v":0}]
[null,null,null,null,null,null,null,null,null,null,null,null,null,null,null,null,null,null,null,null,"Rapor No:",null,null,{"$f":"Bilgiler!E2","v":0}]
[null,null,null,null,null,null,null,null,null,null,null,null,null,null,null,null,null,null,null,null,"Kal.Tar.:",null,null,{"$f":"Bilgiler!L2","v":"00:00:00"}]
[null,null,null,null,null,null,null,null,null,null,null,null,null,null,null,null,null,null,null,null,"Gec.Tar.:",null,null,{"$f":"Bilgiler!M2","v":"00:00:00"}]
["TEST\nBİLGİLERİ",null,"Standart No",null,null,null,":",{"$f":"Bilgiler!C12","v":"TS ISO-60601-1"},null,null,null,null,null,null,null,null,null,null,null,"Revizyon Tarihi",null,null,null,null,":",{"$f":"Bilgiler!C16","v":"2010-06-01"}]
[null,null,"Standart Başlığı",null,null,null,":",{"$f":"Bilgiler!C13","v":"ELEKTRİKLİ TIBBİ DONANIM – Bölüm 1 - Temel Güvenlik ve Gerekli Performans İçin Genel Kurallar"},null,null,null,null,null,null,null,null,null,null,null,"Test Uyg. Tarihi",null,null,null,null,":",{"$f":"Bilgiler!L2","v":"00:00:00"}]
[null,null,"Test Madde No",null,null,null,":",{"$f":"Bilgiler!C14","v":"Koruyucu Topraklama Direnci (Madde 8.6)\nTopraklama Kaçak Akımı (Madde 8.7)\nGövde Kaçak Akımı (Madde 8.7)\nHasta Kaçak Akımı (Madde 8.7)\nHasta Yardımcı Kaçak Akımı (Madde 8.7)\nUygulama Parçalarında Kaçak Akımı (Madde 8.7)\nŞebeke Gerilimi ( Madde 8 )\nCihaz Akımı (Madde 8 )\n"}]
[null,null,"Test Başlığı",null,null,null,":","Koruyucu Topraklama Direnci, Topraklama Kaçak Akımı, Şasi Kaçak Akımı, Hasta Kaçak Akımı, Hasta Yardımcı Kaçak Akımı, Uygulama Parçalarında Kaçak Akımı, Şebeke Gerilimi, Cihaz Akımı"]
["REFERANS\nDONANIM",null,"Biyomedikal Tanım",null,null,null,null,null,":",{"$f":"İzlenebilirlik!C2","v":"-"}]
[null,null,"Marka",null,":",{"$f":"İzlenebilirlik!D2","v":"-"},null,null,null,null,null,null,null,null,null,"İzlenebilirlik",null,null,null,null,":",{"$f":"İzlenebilirlik!G2","v":"-"}]
[null,null,"Model",null,":",{"$f":"İzlenebilirlik!E2","v":"-"},null,null,null,null,null,null,null,null,null,"Sertifika No",null,null,null,null,":",{"$f":"İzlenebilirlik!H2","v":"-"}]
[null,null,"Seri No",null,":",{"$f":"İzlenebilirlik!F2","v":"-"},null,null,null,null,null,null,null,null,null,"Geçerlilik Tarihi",null,null,null,null,":",{"$f":"IF(İzlenebilirlik!C2=\"-\",\" \",İzlenebilirlik!J2)","v":" "}]
["GÖZLEM\nBİLGİLERİ",null,"Gözlem Tanımı",null,null,null,null,null,null,":"]
[null,null,"Gözlenen Katalog Aralığı",null,null,null,null,null,null,":",null,null,null,null,null,"Belirsizlik Tipi",null,null,null,":","B Tipi"]
[null,null,"Belirsizlik Bileşenleri",null,null,null,null,null,null,null,"1-","Sıcaklık",null,null,{"$f":"RANDBETWEEN(18,25)","v":24},"oC"]
[null,null,null,null,null,null,null,null,null,":","2-","Nem",null,null,{"$f":"CONCATENATE(\"% \",RANDBETWEEN(40,65))","v":"% 46"}]
[null,null,null,null,null,null,null,null,null,null,"3-","Basınç",null,null,{"$f":"CONCATENATE(RANDBETWEEN(80,120),\" kPa\")","v":"110 kPa"}]
["GÖZLEM SONUÇLARI"]
[null,null,null,"ELEKTRİK GÜVENLİK TESTİ"]
[null,null,null,"Test Tipi",null,null,null,null,null,null,null,"Ölçüm",null,null,null,"Alt Limit",null,null,null,"Üst Limit",null,null,null,"BF/CF",null,null,"Sonuç"]
[null,null,null,"Şebeke Gerilimi  ",null,null,null,null,null,null,null,{"$f":"'EGT Testi'!B2","v":227},null,null,null,"207 V",null,null,null,"253 V",null,null,null,"-",null,null,"√"]
[null,null,null,"Yük Akımı [A]",null,null,null,null,null,null,null,{"$f":"'EGT Testi'!C2","v":1.0089999999999999},null,null,null,"0 A",null,null,null,"16 A",null,null,null,"-",null,null,"√"]
[null,null,null,"Toprak Direnci [ohm]@1A",null,null,null,null,null,null,null,{"$f":"'EGT Testi'!D2","v":9.0000000000000011E-2},null,null,null,"0 Ω",null,null,null,"0,2 Ω",null,null,null,"-",null,null,"√"]
[null,null,null,"Toprak Kaçak Akım-NC [µA]",null,null,null,null,null,null,null,{"$f":"'EGT Testi'!E2","v":142},null,null,null,"0 μA",null,null,null,"500 μA",null,null,null,"-",null,null,"√"]
[null,null,null,"Toprak Kaçak Akım-SFC [µA]",null,null,null,null,null,null,null,{"$f":"'EGT Testi'!F2","v":752},null,null,null,"0 μA",null,null,null,"1000 μA",null,null,null,"-",null,null,"√"]
[null,null,null,"Gövde Kaçak-NC- [µA]",null,null,null,null,null,null,null,{"$f":"'EGT Testi'!G2","v":65},null,null,null,"0 μA",null,null,null,"100 μA",null,null,null,"-",null,null,"√"]
[null,null,null,"Gövde Kaçak-SFC- PE [µA]",null,null,null,null,null,null,null,{"$f":"'EGT Testi'!H2","v":251},null,null,null,"0 μA",null,null,null,"500 μA",null,null,null,"-",null,null,"√"]
[null,null,null,"Gövde Kaçak-SFC-LINE [µA]",null,null,null,null,null,null,null,{"$f":"'EGT Testi'!I2","v":411},null,null,null,"0 μA",null,null,null,"500 μA",null,null,null,"-",null,null,"√"]
[null,null,null,"İzolasyon Direnci [MOhm]",null,null,null,null,null,null,null,{"$f":"'EGT Testi'!K2","v":115},null,null,null,"50 mΩ",null,null,null,"-",null,null,null,"-",null,null,"√"]
[null,null,null,"Hasta Kaçak [mA]",null,null,null,null,null,null,null,{"$f":"'EGT Testi'!M2","v":5.3E-3},null,null,null,"0 mA",null,null,null,0.01,null,null,null,"BF",null,null,"√"]
[]
[]
["BİYOMEDİKAL METROLOJİ RAPORU\nBiomedical Metrology Report",null,null,null,null,null,null,null,null,null,null,null,null,null,null,null,null,null,null,null,"Künye:",null,null,{"$f":"Bilgiler!$D$2","v":0}]
[null,null,null,null,null,null,null,null,null,null,null,null,null,null,null,null,null,null,null,null,"Rapor No:",null,null,{"$f":"Bilgiler!$E$2","v":0}]
[null,null,null,null,null,null,null,null,null,null,null,null,null,null,null,null,null,null,null,null,"Kal.Tar.:",null,null,{"$f":"Bilgiler!$L$2","v":"00:00:00"}]
[null,null,null,null,null,null,null,null,null,null,null,null,null,null,null,null,null,null,null,null,"Gec.Tar.:",null,null,{"$f":"Bilgiler!$M$2","v":"00:00:00"}]
["TEST\nBİLGİLERİ",null,"Standart No",null,null,null,null,":",{"$f":"Bilgiler!C18","v":"TS EN 60601-2-2"},null,null,null,null,null,null,null,null,null,null,"Revizyon Tarihi",null,null,null,null,":",{"$f":"Bilgiler!C22","v":"Mar.2013"}]
[null,null,"Standart Başlığı",null,null,null,null,":",{"$f":"Bilgiler!C19","v":"Elektrikli Tıbbi Donanım -Bölüm 2 - 2: Yüksek Frekanslı Cerrahi Donanımının Ve Gerekli Performansı İçin Belirli Özellikler"},null,null,null,null,null,null,null,null,null,null,"Test Uyg. Tarihi",null,null,null,null,":",{"$f":"Bilgiler!L2","v":"00:00:00"}]
[null,null,"Test Madde No Ve Test Başlığı",null,null,null,null,":",{"$f":"Bilgiler!C20","v":"Güç Dağılımı Testi TS EN 60601-2-2 (Madde 50.1)\nHF Kaçak Testi TS EN 60601-2-2 (Madde 201.8.7.3.101)\nREM Alarm Testi TS EN 60601-2-2 (Madde 52)"}]
["REFERANS\nDONANIM",null,"Biyomedikal Tanım",null,null,null,null,null,":",{"$f":"İzlenebilirlik!C3","v":"-"}]
[null,null,"Marka",null,":",{"$f":"İzlenebilirlik!D3","v":"-"},null,null,null,null,null,null,null,null,null,"İzlenebilirlik",null,null,null,null,":",{"$f":"İzlenebilirlik!G3","v":"-"}]
[null,null,"Model",null,":",{"$f":"İzlenebilirlik!E3","v":"-"},null,null,null,null,null,null,null,null,null,"Sertifika No",null,null,null,null,":",{"$f":"İzlenebilirlik!H3","v":"-"}]
[null,null,"Seri No",null,":",{"$f":"İzlenebilirlik!F3","v":"-"},null,null,null,null,null,null,null,null,null,"Geçerlilik Tarihi",null,null,null,null,":",{"$f":"IF(İzlenebilirlik!C3=\"-\",\" \",İzlenebilirlik!J3)","v":" "}]
["REFERANS\nDONANIM",null,"Biyomedikal Tanım",null,null,null,null,null,":",{"$f":"İzlenebilirlik!C4","v":"-"}]
[null,null,"Marka",null,":",{"$f":"İzlenebilirlik!D4","v":"-"},null,null,null,null,null,null,null,null,null,"İzlenebilirlik",null,null,null,null,":",{"$f":"İzlenebilirlik!G4","v":"-"}]
[null,null,"Model",null,":",{"$f":"İzlenebilirlik!E4","v":"-"},null,null,null,null,null,null,null,null,null,"Sertifika No",null,null,null,null,":",{"$f":"İzlenebilirlik!H4","v":"-"}]
[null,null,"Seri No",null,":",{"$f":"İzlenebilirlik!F4","v":"-"},null,null,null,null,null,null,null,null,null,"Geçerlilik Tarihi",null,null,null,null,":",{"$f":"IF(İzlenebilirlik!C4=\"-\",\" \",İzlenebilirlik!J4)","v":" "}]
["GÖZLEM\nBİLGİLERİ",null,"Gözlem Tanımı",null,null,null,null,null,null,":"]
[null,null,"Gözlenen Katalog Aralığı",null,null,null,null,null,null,":",null,null,null,null,null,"Belirsizlik Tipi",null,null,null,null,":","B Tipi"]
[null,null,"Belirsizlik Bileşenleri",null,null,null,null,null,null,null,"1-","Sıcaklık",null,null,{"$f":"O57","v":24},"oC"]
[null,null,null,null,null,null,null,null,null,":","2-","Nem",null,null,{"$f":"O58","v":"% 46"}]
[null,null,null,null,null,null,null,null,null,null,"3-","Basınç",null,null,{"$f":"O59:P59","v":"110 kPa"}]
["GÖZLEM SONUÇLARI"]
[null,null,null,"BİPOLAR GÜÇ DAĞILIM TESTİ (CUT) - AYARLANAN WATT = 50 "]
[null,null,null,null,null,null,null,null,null,null,null,null,null,null,"Ayarlanan\nEmpedans\n(Ω)",null,null,null,"Ölçülen\nGüç\n(Watt)",null,null,"Belirsizlik",null,null,null,null,null,"Sonuç"]
[null,null,null,null,null,null,null,null,null,null,null,null,null,null,null,0,null,null,null,{"$f":"IF(Bilgiler!S2=\"X\",\" \",IF('PERFORMANS Testi'!B$2=\"\",\"0\",'PERFORMANS Testi'!B2))","v":"0"},null,{"$f":"IF(Bilgiler!$S$2=\"X\",\" \",(SQRT((T98*0.02)^2+(0.005/SQRT(3))^2))/100)","v":2.8867513459481289E-5},null,null,null,null,null,"√"]
[null,null,null,null,null,null,null,null,null,null,null,null,null,null,null,20,null,null,null,{"$f":"IF(Bilgiler!S2=\"X\",\" \",IF('PERFORMANS Testi'!C$2=\"\",RANDBETWEEN(320,490)/100,'PERFORMANS Testi'!C2))","v":3.97},null,{"$f":"IF(Bilgiler!$S$2=\"X\",\" \",(SQRT((T99*0.02)^2+(0.005/SQRT(3))^2))/100)","v":7.945245958013719E-4},null,null,null,null,null,"√"]
[null,null,null,null,null,null,null,null,null,null,null,null,null,null,null,50,null,null,null,{"$f":"IF(Bilgiler!S2=\"X\",\" \",IF('PERFORMANS Testi'!D$2=\"\",RANDBETWEEN(5830,7200)/100,'PERFORMANS Testi'!D2))","v":63.3},null,{"$f":"IF(Bilgiler!$S$2=\"X\",\" \",(SQRT((T100*0.02)^2+(0.005/SQRT(3))^2))/100)","v":1.2660032912016199E-2},null,null,null,null,null,"√"]
[null,null,null,null,null,null,null,null,null,null,null,null,null,null,null,"100",null,null,null,{"$f":"IF(Bilgiler!S2=\"X\",\" \",IF('PERFORMANS Testi'!E$2=\"\",RANDBETWEEN(3980,4680)/100,'PERFORMANS Testi'!E2))","v":46.59},null,{"$f":"IF(Bilgiler!$S$2=\"X\",\" \",(SQRT((T101*0.02)^2+(0.005/SQRT(3))^2))/100)","v":9.3180447162123752E-3},null,null,null,null,null,"√"]
[null,null,null,null,null,null,null,null,null,null,null,null,null,null,null,"200",null,null,null,{"$f":"IF(Bilgiler!S2=\"X\",\" \",IF('PERFORMANS Testi'!F$2=\"\",RANDBETWEEN(2600,2789)/100,'PERFORMANS Testi'!F2))","v":27.06},null,{"$f":"IF(Bilgiler!$S$2=\"X\",\" \",(SQRT((T102*0.02)^2+(0.005/SQRT(3))^2))/100)","v":5.4120769888586521E-3},null,null,null,null,null,"√"]
[null,null,null,null,null,null,null,null,null,null,null,null,null,null,null,"500",null,null,null,{"$f":"IF(Bilgiler!S2=\"X\",\" \",IF('PERFORMANS Testi'!G$2=\"\",RANDBETWEEN(3480,4124)/100,'PERFORMANS Testi'!G2))","v":35.5},null,{"$f":"IF(Bilgiler!$S$2=\"X\",\" \",(SQRT((T103*0.02)^2+(0.005/SQRT(3))^2))/100)","v":7.1000586852034775E-3},null,null,null,null,null,"√"]
[null,null,null,null,null,null,null,null,null,null,null,null,null,null,null,"750",null,null,null,{"$f":"IF(Bilgiler!S2=\"X\",\" \",IF('PERFORMANS Testi'!H$2=\"\",RANDBETWEEN(2850,3287)/100,'PERFORMANS Testi'!H2))","v":30.52},null,{"$f":"IF(Bilgiler!$S$2=\"X\",\" \",(SQRT((T104*0.02)^2+(0.005/SQRT(3))^2))/100)","v":6.1040682608677743E-3},null,null,null,null,null,"√"]
[null,null,null,null,null,null,null,null,null,null,null,null,null,null,null,"1000",null,null,null,{"$f":"IF(Bilgiler!S2=\"X\",\" \",IF('PERFORMANS Testi'!I$2=\"\",RANDBETWEEN(2290,3152)/100,'PERFORMANS Testi'!I2))","v":23.71},null,{"$f":"IF(Bilgiler!$S$2=\"X\",\" \",(SQRT((T105*0.02)^2+(0.005/SQRT(3))^2))/100)","v":4.742087866471195E-3},null,null,null,null,null,"√"]
[]
[]
[]
[]
[]
["BİYOMEDİKAL METROLOJİ RAPORU\nBiomedical Metrology Report",null,null,null,null,null,null,null,null,null,null,null,null,null,null,null,null,null,null,null,"Künye:",null,null,{"$f":"Bilgiler!$D$2","v":0}]
[null,null,null,null,null,null,null,null,null,null,null,null,null,null,null,null,null,null,null,null,"Rapor No:",null,null,{"$f":"Bilgiler!$E$2","v":0}]
[null,null,null,null,null,null,null,null,null,null,null,null,null,null,null,null,null,null,null,null,"Kal.Tar.:",null,null,{"$f":"Bilgiler!$L$2","v":"00:00:00"}]
[null,null,null,null,null,null,null,null,null,null,null,null,null,null,null,null,null,null,null,null,"Gec.Tar.:",null,null,{"$f":"Bilgiler!$M$2","v":"00:00:00"}]
[]
[null,null,null,"BİPOLAR GÜÇ DAĞILIM TESTİ (COAG) - AYARLANAN WATT = 50 "]
[null,null,null,null,null,null,null,null,null,null,null,null,null,null,"Ayarlanan\nEmpedans\n(Ω)",null,null,null,"Ölçülen\nGüç\n(Watt)",null,null,"Belirsizlik",null,null,null,null,null,"Sonuç"]
[null,null,null,null,null,null,null,null,null,null,null,null,null,null,null,0,null,null,null,{"$f":"IF(Bilgiler!S2=\"X\",\" \",IF('PERFORMANS Testi'!J$2=\"\",\"0\",'PERFORMANS Testi'!J2))","v":"0"},null,{"$f":"IF(Bilgiler!$S$2=\"X\",\" \",(SQRT((T118*0.02)^2+(0.005/SQRT(3))^2))/100)","v":2.8867513459481289E-5},null,null,null,null,null,"√"]
[null,null,null,null,null,null,null,null,null,null,null,null,null,null,null,20,null,null,null,{"$f":"IF(Bilgiler!S2=\"X\",\" \",IF('PERFORMANS Testi'!K$2=\"\",RANDBETWEEN(320,490)/100,'PERFORMANS Testi'!K2))","v":4.22},null,{"$f":"IF(Bilgiler!$S$2=\"X\",\" \",(SQRT((T119*0.02)^2+(0.005/SQRT(3))^2))/100)","v":8.4449353658469961E-4},null,null,null,null,null,"√"]
[null,null,null,null,null,null,null,null,null,null,null,null,null,null,null,50,null,null,null,{"$f":"IF(Bilgiler!S2=\"X\",\" \",IF('PERFORMANS Testi'!L$2=\"\",RANDBETWEEN(5830,7200)/100,'PERFORMANS Testi'!L2))","v":70.78},null,{"$f":"IF(Bilgiler!$S$2=\"X\",\" \",(SQRT((T120*0.02)^2+(0.005/SQRT(3))^2))/100)","v":1.4156029433896121E-2},null,null,null,null,null,"√"]
[null,null,null,null,null,null,null,null,null,null,null,null,null,null,null,"100",null,null,null,{"$f":"IF(Bilgiler!S2=\"X\",\" \",IF('PERFORMANS Testi'!M$2=\"\",RANDBETWEEN(3980,4680)/100,'PERFORMANS Testi'!M2))","v":41.15},null,{"$f":"IF(Bilgiler!$S$2=\"X\",\" \",(SQRT((T121*0.02)^2+(0.005/SQRT(3))^2))/100)","v":8.2300506276288075E-3},null,null,null,null,null,"√"]
[null,null,null,null,null,null,null,null,null,null,null,null,null,null,null,"200",null,null,null,{"$f":"IF(Bilgiler!S2=\"X\",\" \",IF('PERFORMANS Testi'!N$2=\"\",RANDBETWEEN(2600,2789)/100,'PERFORMANS Testi'!N2))","v":27.45},null,{"$f":"IF(Bilgiler!$S$2=\"X\",\" \",(SQRT((T122*0.02)^2+(0.005/SQRT(3))^2))/100)","v":5.4900758950431035E-3},null,null,null,null,null,"√"]
[null,null,null,null,null,null,null,null,null,null,null,null,null,null,null,"500",null,null,null,{"$f":"IF(Bilgiler!S2=\"X\",\" \",IF('PERFORMANS Testi'!O$2=\"\",RANDBETWEEN(3480,4124)/100,'PERFORMANS Testi'!O2))","v":38.19},null,{"$f":"IF(Bilgiler!$S$2=\"X\",\" \",(SQRT((T123*0.02)^2+(0.005/SQRT(3))^2))/100)","v":7.6380545516075834E-3},null,null,null,null,null,"√"]
[null,null,null,null,null,null,null,null,null,null,null,null,null,null,null,"750",null,null,null,{"$f":"IF(Bilgiler!S2=\"X\",\" \",IF('PERFORMANS Testi'!P$2=\"\",RANDBETWEEN(2850,3287)/100,'PERFORMANS Testi'!P2))","v":30.88},null,{"$f":"IF(Bilgiler!$S$2=\"X\",\" \",(SQRT((T124*0.02)^2+(0.005/SQRT(3))^2))/100)","v":6.1760674650892002E-3},null,null,null,null,null,"√"]
[null,null,null,null,null,null,null,null,null,null,null,null,null,null,null,"1000",null,null,null,{"$f":"IF(Bilgiler!S2=\"X\",\" \",IF('PERFORMANS Testi'!Q$2=\"\",RANDBETWEEN(2290,3152)/100,'PERFORMANS Testi'!Q2))","v":25.96},null,{"$f":"IF(Bilgiler!$S$2=\"X\",\" \",(SQRT((T125*0.02)^2+(0.005/SQRT(3))^2))/100)","v":5.192080251049027E-3},null,null,null,null,null,"√"]
[]
[null,null,null,"MONOPOLAR GÜÇ DAĞILIM TESTİ (COAG) - AYARLANAN WATT = 120"]
[null,null,null,null,null,null,null,null,null,null,null,null,null,null,"Ayarlanan\nEmpedans\n(Ω)",null,null,null,"Ölçülen\nGüç\n(Watt)",null,null,"Belirsizlik",null,null,null,null,null,"Sonuç"]
[null,null,null,null,null,null,null,null,null,null,null,null,null,null,null,0,null,null,null,{"$f":"IF(Bilgiler!S2=\"X\",\" \",IF('PERFORMANS Testi'!R$2=\"\",\"0\",'PERFORMANS Testi'!R2))","v":"0"},null,{"$f":"IF(Bilgiler!$S$2=\"X\",\" \",(SQRT((T129*0.02)^2+(0.005/SQRT(3))^2))/100)","v":2.8867513459481289E-5},null,null,null,null,null,"√"]
[null,null,null,null,null,null,null,null,null,null,null,null,null,null,null,50,null,null,null,{"$f":"IF(Bilgiler!S2=\"X\",\" \",IF('PERFORMANS Testi'!S$2=\"\",RANDBETWEEN(890,970)/100,'PERFORMANS Testi'!S2))","v":9.23},null,{"$f":"IF(Bilgiler!$S$2=\"X\",\" \",(SQRT((T130*0.02)^2+(0.005/SQRT(3))^2))/100)","v":1.8462256994564163E-3},null,null,null,null,null,"√"]
[null,null,null,null,null,null,null,null,null,null,null,null,null,null,null,"100",null,null,null,{"$f":"IF(Bilgiler!S2=\"X\",\" \",IF('PERFORMANS Testi'!T$2=\"\",RANDBETWEEN(1520,1856)/100,'PERFORMANS Testi'!T2))","v":17.25},null,{"$f":"IF(Bilgiler!$S$2=\"X\",\" \",(SQRT((T131*0.02)^2+(0.005/SQRT(3))^2))/100)","v":3.450120770833006E-3},null,null,null,null,null,"√"]
[null,null,null,null,null,null,null,null,null,null,null,null,null,null,null,"200",null,null,null,{"$f":"IF(Bilgiler!S2=\"X\",\" \",IF('PERFORMANS Testi'!U$2=\"\",RANDBETWEEN(2650,3800)/100,'PERFORMANS Testi'!U2))","v":29.01},null,{"$f":"IF(Bilgiler!$S$2=\"X\",\" \",(SQRT((T132*0.02)^2+(0.005/SQRT(3))^2))/100)","v":5.8020718138724666E-3},null,null,null,null,null,"√"]
[null,null,null,null,null,null,null,null,null,null,null,null,null,null,null,"500",null,null,null,{"$f":"IF(Bilgiler!S2=\"X\",\" \",IF('PERFORMANS Testi'!V$2=\"\",RANDBETWEEN(11500,12500)/100,'PERFORMANS Testi'!V2))","v":124.07},null,{"$f":"IF(Bilgiler!$S$2=\"X\",\" \",(SQRT((T133*0.02)^2+(0.005/SQRT(3))^2))/100)","v":2.4814016791590458E-2},null,null,null,null,null,"√"]
[null,null,null,null,null,null,null,null,null,null,null,null,null,null,null,"1000",null,null,null,{"$f":"IF(Bilgiler!S2=\"X\",\" \",IF('PERFORMANS Testi'!W$2=\"\",RANDBETWEEN(7340,8650)/100,'PERFORMANS Testi'!W2))","v":78},null,{"$f":"IF(Bilgiler!$S$2=\"X\",\" \",(SQRT((T134*0.02)^2+(0.005/SQRT(3))^2))/100)","v":1.5600026709378845E-2},null,null,null,null,null,"√"]
[null,null,null,null,null,null,null,null,null,null,null,null,null,null,null,"1500",null,null,null,{"$f":"IF(Bilgiler!S2=\"X\",\" \",IF('PERFORMANS Testi'!X$2=\"\",RANDBETWEEN(9170,10373)/100,'PERFORMANS Testi'!X2))","v":100.74},null,{"$f":"IF(Bilgiler!$S$2=\"X\",\" \",(SQRT((T135*0.02)^2+(0.005/SQRT(3))^2))/100)","v":2.0148020680288509E-2},null,null,null,null,null,"√"]
[null,null,null,null,null,null,null,null,null,null,null,null,null,null,null,"2000",null,null,null,{"$f":"IF(Bilgiler!S2=\"X\",\" \",IF('PERFORMANS Testi'!Y$2=\"\",RANDBETWEEN(8310,10480)/100,'PERFORMANS Testi'!Y2))","v":103.55},null,{"$f":"IF(Bilgiler!$S$2=\"X\",\" \",(SQRT((T136*0.02)^2+(0.005/SQRT(3))^2))/100)","v":2.0710020119095333E-2},null,null,null,null,null,"√"]
[]
[null,null,null,"MONOPOLAR GÜÇ DAĞILIM TESTİ (CUT) - AYARLANAN WATT = 170"]
[null,null,null,null,null,null,null,null,null,null,null,null,null,null,"Ayarlanan\nEmpedans\n(Ω)",null,null,null,"Ölçülen\nGüç\n(Watt)",null,null,"Belirsizlik",null,null,null,null,null,"Sonuç"]
[null,null,null,null,null,null,null,null,null,null,null,null,null,null,null,0,null,null,null,{"$f":"IF(Bilgiler!S2=\"X\",\" \",IF('PERFORMANS Testi'!Z$2=\"\",\"0\",'PERFORMANS Testi'!Z2))","v":"0"},null,{"$f":"IF(Bilgiler!$S$2=\"X\",\" \",(SQRT((S140*0.02)^2+(0.005/SQRT(3))^2))/100)","v":2.8867513459481289E-5},null,null,null,null,null,"√"]
[null,null,null,null,null,null,null,null,null,null,null,null,null,null,null,50,null,null,null,{"$f":"IF(Bilgiler!S2=\"X\",\" \",IF('PERFORMANS Testi'!AA$2=\"\",RANDBETWEEN(890,970)/100,'PERFORMANS Testi'!AA2))","v":9.14},null,{"$f":"IF(Bilgiler!$S$2=\"X\",\" \",(SQRT((T141*0.02)^2+(0.005/SQRT(3))^2))/100)","v":1.8282279216042332E-3},null,null,null,null,null,"√"]
[null,null,null,null,null,null,null,null,null,null,null,null,null,null,null,"100",null,null,null,{"$f":"IF(Bilgiler!S2=\"X\",\" \",IF('PERFORMANS Testi'!AB$2=\"\",RANDBETWEEN(1520,1856)/100,'PERFORMANS Testi'!AB2))","v":17.82},null,{"$f":"IF(Bilgiler!$S$2=\"X\",\" \",(SQRT((T142*0.02)^2+(0.005/SQRT(3))^2))/100)","v":3.5641169079216987E-3},null,null,null,null,null,"√"]
[null,null,null,null,null,null,null,null,null,null,null,null,null,null,null,"200",null,null,null,{"$f":"IF(Bilgiler!S2=\"X\",\" \",IF('PERFORMANS Testi'!AC$2=\"\",RANDBETWEEN(2650,3800)/100,'PERFORMANS Testi'!AC2))","v":31.86},null,{"$f":"IF(Bilgiler!$S$2=\"X\",\" \",(SQRT((T143*0.02)^2+(0.005/SQRT(3))^2))/100)","v":6.3720653899134883E-3},null,null,null,null,null,"√"]
[null,null,null,null,null,null,null,null,null,null,null,null,null,null,null,"500",null,null,null,{"$f":"IF(Bilgiler!S2=\"X\",\" \",IF('PERFORMANS Testi'!AD$2=\"\",RANDBETWEEN(16500,17500)/100,'PERFORMANS Testi'!AD2))","v":172},null,{"$f":"IF(Bilgiler!$S$2=\"X\",\" \",(SQRT((T144*0.02)^2+(0.005/SQRT(3))^2))/100)","v":3.4400012112400964E-2},null,null,null,null,null,"√"]
[null,null,null,null,null,null,null,null,null,null,null,null,null,null,null,"1000",null,null,null,{"$f":"IF(Bilgiler!S2=\"X\",\" \",IF('PERFORMANS Testi'!AE$2=\"\",RANDBETWEEN(7340,8650)/100,'PERFORMANS Testi'!AE2))","v":79.47},null,{"$f":"IF(Bilgiler!$S$2=\"X\",\" \",(SQRT((T145*0.02)^2+(0.005/SQRT(3))^2))/100)","v":1.5894026215321697E-2},null,null,null,null,null,"√"]
[null,null,null,null,null,null,null,null,null,null,null,null,null,null,null,"1500",null,null,null,{"$f":"IF(Bilgiler!S2=\"X\",\" \",IF('PERFORMANS Testi'!AF$2=\"\",RANDBETWEEN(9170,10373)/100,'PERFORMANS Testi'!AF2))","v":95.34},null,{"$f":"IF(Bilgiler!$S$2=\"X\",\" \",(SQRT((T146*0.02)^2+(0.005/SQRT(3))^2))/100)","v":1.9068021851606248E-2},null,null,null,null,null,"√"]
[null,null,null,null,null,null,null,null,null,null,null,null,null,null,null,"2000",null,null,null,{"$f":"IF(Bilgiler!S2=\"X\",\" \",IF('PERFORMANS Testi'!AG$2=\"\",RANDBETWEEN(8310,12480)/100,'PERFORMANS Testi'!AG2))","v":124.06},null,{"$f":"IF(Bilgiler!$S$2=\"X\",\" \",(SQRT((T147*0.02)^2+(0.005/SQRT(3))^2))/100)","v":2.4812016792943967E-2},null,null,null,null,null,"√"]
[]
["BİYOMEDİKAL METROLOJİ RAPORU\nBiomedical Metrology Report",null,null,null,null,null,null,null,null,null,null,null,null,null,null,null,null,null,null,null,"Künye:",null,null,{"$f":"Bilgiler!$D$2","v":0}]
[null,null,null,null,null,null,null,null,null,null,null,null,null,null,null,null,null,null,null,null,"Rapor No:",null,null,{"$f":"Bilgiler!$E$2","v":0}]
[null,null,null,null,null,null,null,null,null,null,null,null,null,null,null,null,null,null,null,null,"Kal.Tar.:",null,null,{"$f":"Bilgiler!$L$2","v":"00:00:00"}]
[null,null,null,null,null,null,null,null,null,null,null,null,null,null,null,null,null,null,null,null,"Gec.Tar.:",null,null,{"$f":"Bilgiler!$M$2","v":"00:00:00"}]
[]
[null,null,null,"YÜKSEK FREKANS ÇIKIŞ TESTİ"]
[null,null,null,"Nominal Güç (W):",null,null,null,null,null,{"$f":"IF(Bilgiler!S2=\"X\",\" \",IF('PERFORMANS Testi'!AH$2=\"\",100,'PERFORMANS Testi'!AH2))","v":100},null,null,null,null,null,null,"Nominal Yük (Ω):",null,null,null,null,null,{"$f":"IF(Bilgiler!S2=\"X\",\" \",IF('PERFORMANS Testi'!AI$2=\"\",500,'PERFORMANS Testi'!AI2))","v":500}]
[null,null,null,"Kriter",null,null,null,null,null,null,null,null,"Ölçülen Akım (mA)",null,null,null,null,null,null,null,"Sonuç"]
[null,null,null,"424,85 - 469,57 mA",null,null,null,null,null,null,null,null,{"$f":"IF(Bilgiler!S2=\"X\",\" \",IF('PERFORMANS Testi'!AJ$2=\"\",SQRT(100/500)*RANDBETWEEN(955,1045),'PERFORMANS Testi'!AJ2))","v":443.18867314045832},null,null,null,null,null,null,null,{"$f":"IF(Bilgiler!$S$2=\"X\",\" \",IF(OR(M157<-424.85,Q118>469.57),\"X\",\"√\"))","v":"√"}]
[null,null,null,"Vrms [V]",null,null,null,null,null,null,null,null,"Vpeak [V]",null,null,null,null,null,null,null,"Vp-p  [V]"]
[null,null,null,{"$f":"(J155/M157)*1000","v":225.63753557010995},null,null,null,null,null,null,null,null,{"$f":"D159*RANDBETWEEN(14,16)/10","v":338.45630335516495},null,null,null,null,null,null,null,{"$f":"M159*RANDBETWEEN(18,22)/10","v":609.22134603929692}]
[]
[null,null,null,"YÜKSEK FREKANS AKIM KAÇAK TESTİ"]
[null,null,null,"Isolated neutral lead",null,null,null,null,null,null,null,null,"ESU yük: YOK",null,null,null,null,null,null,null,"Mod : Std COAG 120W"]
[null,null,null,"Kriter",null,null,null,null,null,null,null,null,"Ölçülen Akım (mA)",null,null,null,null,null,null,null,"Sonuç"]
[null,null,null,"max  150.0 mA",null,null,null,null,null,null,null,null,{"$f":"IF(Bilgiler!S2=\"X\",\" \",IF('PERFORMANS Testi'!AK$2=\"\",RANDBETWEEN(750,850)/10,'PERFORMANS Testi'!AK2))","v":84.1},null,null,null,null,null,null,null,{"$f":"IF(Bilgiler!$S$2=\"X\",\" \",IF(M164>150,\"X\",\"√\"))","v":"√"}]
[null,null,null,"Dispersive neutral lead",null,null,null,null,null,null,null,null,"ESU yük: 200 OHM",null,null,null,null,null,null,null,"Mod:Pure CUT 300W"]
[null,null,null,"Kriter",null,null,null,null,null,null,null,null,"Ölçülen Akım (mA)",null,null,null,null,null,null,null,"Sonuç"]
[null,null,null,"max  150.0 mA",null,null,null,null,null,null,null,null,{"$f":"IF(Bilgiler!S2=\"X\",\" \",IF('PERFORMANS Testi'!AL$2=\"\",RANDBETWEEN(750,850)/10,'PERFORMANS Testi'!AL2))","v":83.5},null,null,null,null,null,null,null,{"$f":"IF(Bilgiler!$S$2=\"X\",\" \",IF(M167>150,\"X\",\"√\"))","v":"√"}]
[null,null,null,"IEC bipolar lead 1 leakage",null,null,null,null,null,null,null,null,"ESU yük: 100 OHM",null,null,null,null,null,null,null,"Mod : L.Hand ctl; Std COAG 120W"]
[null,null,null,"Kriter",null,null,null,null,null,null,null,null,"Ölçülen Akım (mA)",null,null,null,null,null,null,null,"Sonuç"]
[null,null,null,"max  150.0 mA",null,null,null,null,null,null,null,null,{"$f":"IF(Bilgiler!S2=\"X\",\" \",IF('PERFORMANS Testi'!AM$2=\"\",RANDBETWEEN(750,850)/10,'PERFORMANS Testi'!AM2))","v":78.099999999999994},null,null,null,null,null,null,null,{"$f":"IF(Bilgiler!$S$2=\"X\",\" \",IF(M170>150,\"X\",\"√\"))","v":"√"}]
[null,null,null,"IEC bipolar lead 2 leakage",null,null,null,null,null,null,null,null,"ESU yük: 100 OHM",null,null,null,null,null,null,null,"Mod : L.Hand ctl; Std COAG 120W"]
[null,null,null,"Kriter",null,null,null,null,null,null,null,null,"Ölçülen Akım (mA)",null,null,null,null,null,null,null,"Sonuç"]
[null,null,null,"max  150.0 mA",null,null,null,null,null,null,null,null,{"$f":"IF(Bilgiler!S2=\"X\",\" \",IF('PERFORMANS Testi'!AN$2=\"\",RANDBETWEEN(750,850)/10,'PERFORMANS Testi'!AN2))","v":83},null,null,null,null,null,null,null,{"$f":"IF(Bilgiler!$S$2=\"X\",\" \",IF(M173>150,\"X\",\"√\"))","v":"√"}]
[]
[null,null,null,"RAM TEST"]
[null,null,null,"Resistance Limit(s): 135  ± 5 Ω "]
[null,null,null,"Değer Ω",null,null,null,null,null,null,null,null,"ALARM",null,null,null,null,null,null,null,"SONUÇ"]
[null,null,null,{"$f":"IF(Bilgiler!S2=\"X\",\" \",IF('PERFORMANS Testi'!AO$2=\"\",RANDBETWEEN(130,140),'PERFORMANS Testi'!AO2))","v":140},null,null,null,null,null,null,null,null,{"$f":"IF(Bilgiler!$S$2=\"X\",\" \",IF(OR(D178<-130,D178>140),\"DUYULMADI\",\"DUYULDU\"))","v":"DUYULDU"},null,null,null,null,null,null,null,{"$f":"IF(Bilgiler!$S$2=\"X\",\" \",IF(M178=\"DUYULDU\",\"√\",\"X\"))","v":"√"}]
[]
[null,null,null,"MONOPOLAR GÜÇ TESTİ (CUT)"]
[null,null,null,"Ayarlanan Değer\n(Watt)",null,null,null,null,"Ölçülen Değer\n(Watt)",null,null,null,null,"Sapma\n(Watt)",null,null,null,null,"Belirsizlik\n(Watt)",null,null,null,"Sonuç",null,null,"Tolerans"]
[]
[null,null,null,50,null,null,null,null,{"$f":"RANDBETWEEN(D183*97,D183*103)/100","v":51.18},null,null,null,null,{"$f":"I183-D183","v":1.1799999999999997},null,null,null,null,{"$f":"IF(Bilgiler!$S$2=\"X\",\" \",(SQRT((I183*0.02)^2+(0.005/SQRT(3))^2))/100)","v":1.0236040705924012E-2},null,null,null,"√",null,null,"± %5\n veya 10W'dan (hangisi\ndaha küçükse)"]
[null,null,null,150,null,null,null,null,{"$f":"RANDBETWEEN(D184*97,D184*103)/100","v":150.44},null,null,null,null,{"$f":"I184-D184","v":0.43999999999999773},null,null,null,null,{"$f":"IF(Bilgiler!$S$2=\"X\",\" \",(SQRT((I184*0.02)^2+(0.005/SQRT(3))^2))/100)","v":3.0088013848264115E-2},null,null,null,"√"]
[null,null,null,300,null,null,null,null,296.33,null,null,null,null,-3.6700000000000159,null,null,null,null,{"$f":"IF(Bilgiler!$S$2=\"X\",\" \",(SQRT((I185*0.02)^2+(0.005/SQRT(3))^2))/100)","v":5.926600703044986E-2},null,null,null,"√"]
[]
[null,null,null,"MONOPOLAR GÜÇ TESTİ (COAG)"]
[null,null,null,"Ayarlanan Değer\n(Watt)",null,null,null,null,"Ölçülen Değer\n(Watt)",null,null,null,null,"Sapma\n(Watt)",null,null,null,null,"Belirsizlik\n(Watt)",null,null,null,"Sonuç",null,null,"Tolerans"]
[]
[null,null,null,30,null,null,null,null,{"$f":"RANDBETWEEN(D190*97,D190*103)/100","v":29.16},null,null,null,null,{"$f":"I190-D190","v":-0.83999999999999986},null,null,null,null,{"$f":"IF(Bilgiler!$S$2=\"X\",\" \",(SQRT((I190*0.02)^2+(0.005/SQRT(3))^2))/100)","v":5.8320714444640796E-3},null,null,null,"√",null,null,"± %5\n veya 10W'dan (hangisi\ndaha küçükse)"]
[null,null,null,80,null,null,null,null,{"$f":"RANDBETWEEN(D191*97,D191*103)/100","v":81.34},null,null,null,null,{"$f":"I191-D191","v":1.3400000000000034},null,null,null,null,{"$f":"IF(Bilgiler!$S$2=\"X\",\" \",(SQRT((I191*0.02)^2+(0.005/SQRT(3))^2))/100)","v":1.6268025612634539E-2},null,null,null,"√"]
[null,null,null,120,null,null,null,null,116.63,null,null,null,null,-3.3700000000000045,null,null,null,null,{"$f":"IF(Bilgiler!$S$2=\"X\",\" \",(SQRT((I192*0.02)^2+(0.005/SQRT(3))^2))/100)","v":2.3326017862750025E-2},null,null,null,"√"]
[]
[]
["BİYOMEDİKAL METROLOJİ RAPORU\nBiomedical Metrology Report",null,null,null,null,null,null,null,null,null,null,null,null,null,null,null,null,null,null,null,"Künye:",null,null,{"$f":"Bilgiler!$D$2","v":0}]
[null,null,null,null,null,null,null,null,null,null,null,null,null,null,null,null,null,null,null,null,"Rapor No:",null,null,{"$f":"Bilgiler!$E$2","v":0}]
[null,null,null,null,null,null,null,null,null,null,null,null,null,null,null,null,null,null,null,null,"Kal.Tar.:",null,null,{"$f":"Bilgiler!$L$2","v":"00:00:00"}]
[null,null,null,null,null,null,null,null,null,null,null,null,null,null,null,null,null,null,null,null,"Gec.Tar.:",null,null,{"$f":"Bilgiler!$M$2","v":"00:00:00"}]
[]
[null,null,null,"BİPOLAR GÜÇ TESTİ"]
[null,null,null,"Ayarlanan Değer\n(Watt)",null,null,null,null,"Ölçülen Değer\n(Watt)",null,null,null,null,"Sapma\n(Watt)",null,null,null,null,"Belirsizlik\n(Watt)",null,null,null,"Sonuç",null,null,"Tolerans"]
[]
[null,null,null,20,null,null,null,null,{"$f":"RANDBETWEEN(D203*97,D203*103)/100","v":19.47},null,null,null,null,{"$f":"I203-D203","v":-0.53000000000000114},null,null,null,null,{"$f":"IF(Bilgiler!$S$2=\"X\",\" \",(SQRT((I203*0.02)^2+(0.005/SQRT(3))^2))/100)","v":3.8941070007555427E-3},null,null,null,"√",null,null,"± %5\n veya 10W'dan (hangisi\ndaha küçükse)"]
[null,null,null,40,null,null,null,null,{"$f":"RANDBETWEEN(D204*97,D204*103)/100","v":39.31},null,null,null,null,{"$f":"I204-D204","v":-0.68999999999999773},null,null,null,null,{"$f":"IF(Bilgiler!$S$2=\"X\",\" \",(SQRT((I204*0.02)^2+(0.005/SQRT(3))^2))/100)","v":7.8620529973622896E-3},null,null,null,"√"]
[null,null,null,70,null,null,null,null,69.64,null,null,null,null,-0.35999999999999943,null,null,null,null,{"$f":"IF(Bilgiler!$S$2=\"X\",\" \",(SQRT((I205*0.02)^2+(0.005/SQRT(3))^2))/100)","v":1.39280299157251E-2},null,null,null,"√"]
[]
[]
[null,null,null,"FİZİKSEL KONTROL"]
[null,null,null,"Kontrol Edilen Bölgeler",null,null,null,null,null,null,null,null,null,null,null,null,null,null,null,null,null,null,null,null,null,null,"Sonuç"]
[null,null,null,"Şase Dış Muhafaza",null,null,null,null,null,null,null,null,null,null,null,null,null,null,null,null,null,null,null,null,null,null,{"$f":"IF(Bilgiler!$S$2=\"X\",IF('PERFORMANS Testi'!$AP$2=\"\",\"√\",'PERFORMANS Testi'!$AP$2),\"√\")","v":"√"}]
[null,null,null,"Gösterge ve LCD ekran ve paneller",null,null,null,null,null,null,null,null,null,null,null,null,null,null,null,null,null,null,null,null,null,null,{"$f":"IF(Bilgiler!$S$2=\"X\",IF('PERFORMANS Testi'!$AQ$2=\"\",\"√\",'PERFORMANS Testi'!$AQ$2),\"√\")","v":"√"}]
[null,null,null,"Montaj ve Yerleşimler",null,null,null,null,null,null,null,null,null,null,null,null,null,null,null,null,null,null,null,null,null,null,{"$f":"IF(Bilgiler!$S$2=\"X\",IF('PERFORMANS Testi'!$AR$2=\"\",\"√\",'PERFORMANS Testi'!$AR$2),\"√\")","v":"√"}]
[null,null,null,"Besleme, Elektrik kablo ve prizleri",null,null,null,null,null,null,null,null,null,null,null,null,null,null,null,null,null,null,null,null,null,null,{"$f":"IF(Bilgiler!$S$2=\"X\",IF('PERFORMANS Testi'!$AS$2=\"\",\"√\",'PERFORMANS Testi'!$AS$2),\"√\")","v":"√"}]
[null,null,null,"Butonlar, düğmeler",null,null,null,null,null,null,null,null,null,null,null,null,null,null,null,null,null,null,null,null,null,null,{"$f":"IF(Bilgiler!$S$2=\"X\",IF('PERFORMANS Testi'!$AT$2=\"\",\"√\",'PERFORMANS Testi'!$AT$2),\"√\")","v":"√"}]
[null,null,null,"Alarm ses ve lamba/ledleri",null,null,null,null,null,null,null,null,null,null,null,null,null,null,null,null,null,null,null,null,null,null,{"$f":"IF(Bilgiler!$S$2=\"X\",IF('PERFORMANS Testi'!$AU$2=\"\",\"√\",'PERFORMANS Testi'!$AU$2),\"√\")","v":"√"}]
[null,null,null,"Pil – Akü ve Batarya Fiziksel kontrol",null,null,null,null,null,null,null,null,null,null,null,null,null,null,null,null,null,null,null,null,null,null,{"$f":"IF(Bilgiler!$S$2=\"X\",IF('PERFORMANS Testi'!$AV$2=\"\",\"√\",'PERFORMANS Testi'!$AV$2),\"√\")","v":"√"}]
[null,null,null,"Tekerlek ve frenler",null,null,null,null,null,null,null,null,null,null,null,null,null,null,null,null,null,null,null,null,null,null,{"$f":"IF(Bilgiler!$S$2=\"X\",IF('PERFORMANS Testi'!$AW$2=\"\",\"√\",'PERFORMANS Testi'!$AW$2),\"√\")","v":"√"}]
[null,null,null,"Etiketler ve Uyarı İşaretleri",null,null,null,null,null,null,null,null,null,null,null,null,null,null,null,null,null,null,null,null,null,null,{"$f":"IF(Bilgiler!$S$2=\"X\",IF('PERFORMANS Testi'!$AX$2=\"\",\"√\",'PERFORMANS Testi'!$AX$2),\"√\")","v":"√"}]
[]
[]
[]
[]
[]
[]
[]
[]
[]
[]
[]
[]
[]
["UZMAN GÖRÜŞÜ",null,{"$f":"CONCATENATE('EGT Testi'!N2,\"\",Bilgiler!W2)","v":"Cihaz;  IEC60601-1 standartlarına göre Elektriksel Güvenlik Ölçüm testlerinden geçmiştir."},null,null,null,null,null,null,null,null,null,null,null,null,null,"TESTİ UYGULAYAN",null,"Adı Soyadı:",null,null,{"$f":"Bilgiler!O2","v":0}]
[null,null,null,null,null,null,null,null,null,null,null,null,null,null,null,null,null,null,"Ünvanı:",null,null,{"$f":"Bilgiler!P2","v":0}]
[null,null,null,null,null,null,null,null,null,null,null,null,null,null,null,null,null,null,"İmza:"]

{"sheet":"EGT Testi","index":3,"n_rows":2,"n_cols":14,"rows_kept":2,"cut":false,"hidden":false,"merged":[]}
["Id","ŞEBEKE GERİLİMİ [v]","YÜK AKIMI [a]","TOPRAK DİRENCİ","TOPRAK-KACAK-NC-µA","TOPRAK-KACAK-SFC-µA","GÖVDE-KAÇAK-NC","GÖVDE-KAÇAK-SFC-PE","GÖVDE-KAÇAK-SFC-LINE","GÜÇ","İZOLASYON-DİRENCİ","EKİPMAN-KAÇAK µA","HASTA-KACAK","EGT UZMAN GÖRÜŞÜ"]
[1,{"$f":"RANDBETWEEN(207,245)","v":227},{"$f":"RANDBETWEEN(0,16)/100+RANDBETWEEN(100,900)/1000","v":1.0089999999999999},{"$f":"RANDBETWEEN(0,2)/50+RANDBETWEEN(1,10)/100","v":9.0000000000000011E-2},{"$f":"RANDBETWEEN(20,480)","v":142},{"$f":"RANDBETWEEN(20,980)","v":752},{"$f":"RANDBETWEEN(4,92)","v":65},{"$f":"RANDBETWEEN(40,420)","v":251},{"$f":"RANDBETWEEN(40,420)","v":411},{"$f":"RANDBETWEEN(40,150)+RANDBETWEEN(1,9)/10","v":72.7},{"$f":"RANDBETWEEN(81,120)","v":115},{"$f":"RANDBETWEEN(68,385)","v":71},{"$f":"RANDBETWEEN(8,98)/10000","v":5.3E-3},"Cihaz;  IEC60601-1 standartlarına göre Elektriksel Güvenlik Ölçüm testlerinden geçmiştir."]

{"sheet":"PERFORMANS Testi","index":4,"n_rows":4,"n_cols":52,"rows_kept":4,"cut":false,"hidden":false,"merged":[[3,36,3,39],[3,41,3,49],[3,1,3,8],[3,9,3,16],[3,17,3,24],[3,25,3,32],[3,33,3,35]]}
["id","O1","O2","O3","O4","O5","O6","O7","O8","O9","O10","O11","O12","O13","O14","O15","O16","O17","O18","O19","O20","O21","O22","O23","O24","O25","O26","O27","O28","O29","O30","O31","O32","O33","O34","O35","O36","O37","O38","O39","O40","O41","O42","O43","O44","O45","O46","O47","O48","O49","O50","rapor_no"]
[1]
[null,0,20,50,"100","200","500","750","1000",0,20,50,"100","200","500","750","1000",0,50,"100","200","500","1000","1500","2000",0,50,"100","200","500","1000","1500","2000","Nominal Güç (W)","Nominal Yük (Ω)","Ölçülen","Isolated neutral lead","Dispersive neutral lead","IEC bipolar lead 1 leakage","IEC bipolar lead 2 leakage","Ölçülen","F1","F2","F3","F4","F5","F6","F7","F8","F9"]
[null,"BİPOLAR GÜÇ DAĞILIM TESTİ (CUT)",null,null,null,null,null,null,null,"BİPOLAR GÜÇ DAĞILIM TESTİ (COAG)",null,null,null,null,null,null,null,"MONOPOLAR GÜÇ DAĞILIM TESTİ (COAG)",null,null,null,null,null,null,null,"MONOPOLAR GÜÇ DAĞILIM TESTİ (CUT)",null,null,null,null,null,null,null,"YÜKSEK FREKANS ÇIKIŞ TESTİ",null,null,"YÜKSEK FREKANS AKIM KAÇAK TESTİ",null,null,null,"RAM TEST","FİZİKSEL KONTROL"]